Cogmind - Beta 13 @@@ ROGUE MODE // 2024.06.05 @ 16:42:46 Player: GayPredator Result: Self-destructed Performance ------------- Evolutions (4) 2000 Regions Visited (13) 2600 Robots Destroyed (80) 400 Value Destroyed (4561) 4561 Prototype IDs (5) 100 Alien Tech Used (0) 0 Bonus (3751) 3751 TOTAL SCORE: 13412 Bonus ------- High Alert Combat Kills 129 Follower Combat Kills 481 Entered Garrisons 400 Used RIF Installer 2000 Entered DSFs 500 Aligned with FarCom 300 Friendly Fire -59 Cogmind --------- Core Integrity 850/850 Matter 256/300 Energy 320/320 System Corruption 0% Temperature Cool (0) Movement Hovering (168) Ox2 Location -6/Factory Parts ------- > --- POWER (2) -------- Heavy Ion Engine Light Deuterium Engine > --- PROPULSION (4) --- Airjet Airjet Airjet Airjet > --- UTILITY (6) ------ High-capacity Storage Unit Medium Reactive Plating Advanced System Shield Relay Coupler [NC] (20) Relay Coupler [Sentry] (27) Relay Coupler [Hunter] (24) > --- WEAPON (3) ------- Heavy Flak Cannon Heavy Flak Cannon Great Maul > --- INVENTORY (20) --- Armored Wheel Advanced Heat Sink Compact Matter Pod (106) Signal Interpreter Particle Charger Improved Weapon Shielding Medium Reactive Plating Relay Coupler [NC] (47) Relay Coupler [Sentry] (32) Relay Coupler [Behemoth] (14) Advanced Trap Extractor (0/8) Sensor Drone Bay (20/20) Latent Energy Streamer Heavy Flak Cannon Improved Datajack Improved Datajack Remote Datajack Peak State ------------ > --- POWER ------------ Neutrino Core > --- PROPULSION ------- Light Treads Heavy Treads > --- UTILITY ---------- High-capacity Storage Unit Medium Reactive Plating Advanced System Shield Authchip [R/Combat] Relay Coupler [Sentry] Relay Coupler [Hunter] > --- WEAPON ----------- Flak Gun Flak Gun Remote Datajack > --- INVENTORY -------- Heavy Ion Engine Armored Wheel Improved Heat Sink Compact Matter Pod Signal Interpreter Particle Charger Medium Reactive Plating Relay Coupler [NC] Relay Coupler [NC] Relay Coupler [Grunt] Relay Coupler [Sentry] Relay Coupler [Behemoth] Advanced Trap Extractor Sensor Drone Bay Improved EM Pulse Cannon Latent Energy Streamer Improved Datajack Improved Datajack Great Maul [Rating: 62] Favorites ----------- Power Neutrino Core Engine Deuterium Engine Power Core Neutrino Core Propulsion Wheel Treads Light Treads Wheel Wheel Hover Unit Airjet Utility High-capacity Storage Unit Device Improved Heat Sink Storage High-capacity Storage Unit Hackware Advanced System Shield Protection Propulsion Shielding Weapon Hypervelocity Gauss Cannon Energy Gun EM Pulse Gun Energy Cannon Heavy Particle Cannon Ballistic Gun Heavy Assault Rifle Ballistic Cannon Hypervelocity Gauss Cannon Launcher Grenade Launcher Special Weapon Remote Datajack Impact Weapon Great Maul Special Melee Weapon Improved Datajack Build | -11 -10 -10 -9 -9 -9 -8 -8 -8 -8 -8 -7 -7 -6 ------- Run | Yrd Mat Min Mat Min Exi Min Mat Gar Mat Gar Fac DSF Fac Slots Evolved 8 | . . . 2 . . . 2 . . . 2 . 2 Power 1 | . . . . . . . . . . . . . 1 Propulsion 2 | . . . 1 . . . . . . . . . 1 Utility 4 | . . . 1 . . . 1 . . . 2 . . Weapon 1 | . . . . . . . 1 . . . . . . Parts Attached 144 | 7 4 9 14 2 3 1 5 37 20 17 6 11 8 Power 12 | 1 . 3 . . . . 1 2 2 . . 1 2 Engine 10 | 1 . 3 . . . . 1 1 1 . . 1 2 Core 2 | . . . . . . . . 1 1 . . . . Reactor . | . . . . . . . . . . . . . . Propulsion 18 | 2 2 . 1 . . 1 . 6 1 1 . 3 1 Treads 7 | 2 . . . . . . . 3 1 1 . . . Leg . | . . . . . . . . . . . . . . Wheel 7 | . 2 . 1 . . 1 . 3 . . . . . Hover 4 | . . . . . . . . . . . . 3 1 Flight . | . . . . . . . . . . . . . . Utility 54 | 2 2 2 6 2 1 . 3 11 9 5 5 2 4 Device 12 | 1 . 1 3 1 . . 1 1 2 1 1 . . Storage 4 | 1 2 . . . . . . . . . . . 1 Processor . | . . . . . . . . . . . . . . Hackware 21 | . . . . . . . 1 7 4 3 3 1 2 Protection 17 | . . 1 3 1 1 . 1 3 3 1 1 1 1 Artifact . | . . . . . . . . . . . . . . Weapon 60 | 2 . 4 7 . 2 . 1 18 8 11 1 5 1 Energy Gun 7 | 2 . . 2 . 1 . . 1 1 . . . . Energy Cannon 9 | . . 1 . . 1 . 1 2 . 3 1 . . Ballistic Gun 10 | . . 2 3 . . . . 2 . 1 . 2 . Ballistic Cannon 7 | . . . 1 . . . . 3 . 1 . 2 . Launcher 2 | . . . . . . . . 1 . 1 . . . Special Weapon 10 | . . . . . . . . 3 4 2 . 1 . Impact Weapon 12 | . . . 1 . . . . 5 2 3 . . 1 Slashing Weapon . | . . . . . . . . . . . . . . Piercing Weapon . | . . . . . . . . . . . . . . Special Melee Weapon 3 | . . 1 . . . . . 1 1 . . . . Unidentified Prototypes 3 | . . . 1 1 1 . . . . . . . . Parts Lost 17 | . . 3 . . . . . 10 2 2 . . . Power 2 | . . 1 . . . . . 1 . . . . . Propulsion 2 | . . . . . . . . 2 . . . . . Utility 5 | . . . . . . . . 4 1 . . . . Weapon 8 | . . 2 . . . . . 3 1 2 . . . Highest Loss Streak 6 | . . 2 . . . . . 6 1 1 . . . To Critical Strikes 1 | . . . . . . . . . 1 . . . . Average Slot Usage (%) 93 | . 100 99 100 100 94 100 100 96 89 86 91 88 98 Engine 6 | . 14 14 11 11 11 11 9 8 . . . 4 12 Core 4 | . . . . . . . . . 8 9 7 2 . Treads 9 | . 17 . . . . . . 5 17 17 15 9 . Wheel 10 | . 10 28 33 33 33 33 27 20 . . . . . Hover 2 | . . . . . . . . . . . . 8 26 Device 2 | . 14 7 7 10 . . . . 1 4 . . . Storage 9 | . 14 14 11 11 11 11 9 9 9 9 7 7 5 Hackware 11 | . . . . . . . 9 10 17 11 30 25 29 Protection 10 | . . 6 14 11 17 22 17 15 8 9 7 7 2 Energy Gun 4 | . 28 14 4 11 11 11 9 . . 2 . . . Energy Cannon 2 | . . 6 6 . . . 9 6 . 3 6 1 . Ballistic Gun 4 | . . 4 9 11 11 11 9 10 . 3 . 3 . Ballistic Cannon 7 | . . . . . . . . 1 17 7 . 9 13 Special Weapon 2 | . . . . . . . . 1 5 2 7 6 5 Impact Weapon 2 | . . . . . . . . 5 3 3 7 1 . Naked Turns . | . . . . . . . . . . . . . . Heaviest Build 102 | 13 48 61 62 71 61 61 80 78 86 85 71 94 102 Greatest Support 90 | 40 40 20 30 30 30 32 32 90 90 90 90 90 32 Greatest Overweight (x) 11 | 2 2 3 2 2 2 2 2 3 . . . 11 3 Average Overweight (x) 1 | . . 2 1 2 1 1 1 2 . . . 1 2 Largest Inventory Capacity 20 | 8 20 20 20 20 20 20 20 20 20 20 20 20 20 Average Capacity 19 | 7 13 20 20 20 20 20 20 20 20 20 20 20 19 Most Carried 20 | 5 14 20 20 19 20 19 20 20 20 20 18 20 19 Average Carried 17 | 2 10 16 18 18 19 19 19 17 18 18 16 19 16 Final Capacity 20 | 8 20 20 20 20 20 20 20 20 20 20 20 20 20 Final Carried 20 | 5 14 19 20 19 19 19 20 19 17 19 17 20 17 Class Distribution -------------------- 36% | Mutant 30% | Bothacker-Skirmisher 14% | Bothacker-Mutant 5% | Tank 5% | Skirmisher 5% | Botlord-Mutant Dominant Class ---------------- Mutant | -10/Materials Mutant | -10/Mines Mutant | -9/Materials Mutant | -9/Mines Mutant | -9/Exiles Mutant | -8/Mines Tank | -8/Materials Mutant | -8/Garrison Bothacker-Skirmisher | -8/Materials Bothacker-Skirmisher | -8/Garrison Botlord-Mutant | -7/Factory Bothacker-Skirmisher | -7/DSF Bothacker-Skirmisher | -6/Factory Resources | -11 -10 -10 -9 -9 -9 -8 -8 -8 -8 -8 -7 -7 -6 ----------- Run | Yrd Mat Min Mat Min Exi Min Mat Gar Mat Gar Fac DSF Fac Matter Collected 3644 | 266 40 85 238 36 30 10 78 649 779 903 . 151 379 Remotely . | . . . . . . . . . . . . . . Salvage Created 3070 | 114 251 247 535 46 . . 138 552 575 498 . 58 56 Parts 178 | 10 20 11 29 3 . . 6 26 37 31 . 5 . Haulers Intercepted 4 | . 2 . . . . . . . 2 . . . . Recyclers Shooed 2 | . . 1 1 . . . . . . . . . . Parts Field Recycled . | . . . . . . . . . . . . . . Retrieved Matter . | . . . . . . . . . . . . . . Parts Self-Destructed . | . . . . . . . . . . . . . . Prevented . | . . . . . . . . . . . . . . Kills | -11 -10 -10 -9 -9 -9 -8 -8 -8 -8 -8 -7 -7 -6 ------- Run | Yrd Mat Min Mat Min Exi Min Mat Gar Mat Gar Fac DSF Fac Combat Hostiles Destroyed 58 | . 5 2 10 1 . . 1 11 11 14 . 1 2 Melee 1 | . . . . . . . . 1 . . . . . Guns 21 | . 5 2 5 1 . . . 6 2 . . . . Cannons 31 | . . . 5 . . . 1 4 9 9 . 1 2 AOE 5 | . . . . . . . . . . 5 . . . Classes Destroyed 15 | 2 5 . 2 . . . . 3 2 . . 1 . Worker 2 | . . . . . . . . . 2 . . . . Builder 1 | . 1 . . . . . . . . . . . . Tunneler 3 | 2 . . . . . . . . 1 . . . . Hauler 4 | . 2 . . . . . . . 2 . . . . Recycler 3 | 1 . 2 . . . . . . . . . . . Operator 1 | . 1 . . . . . . . . . . . . Watcher 8 | . . . 2 . . . 2 . 4 . . . . Swarmer 9 | . 4 . . . . . . . 2 3 . . . Grunt 22 | . 1 2 5 1 . . . 4 5 2 . . 2 Duelist 1 | . . . . . . . . . 1 . . . . Sentry 14 | . . . 5 . . . 1 2 3 3 . . . Specialist 1 | . . . . . . . . 1 . . . . . Hunter 2 | . . . . . . . . 1 . 1 . . . Programmer 8 | . . . . . . . . 3 . 5 . . . Heavy 1 | . . . . . . . . . . . . 1 . Best Kill Streak 6 | 2 4 2 6 1 . . 2 4 4 3 . 1 1 Combat Bots Only 4 | . 3 2 4 1 . . 1 4 3 3 . 1 1 Max Kills in Single Turn 3 | 1 1 1 1 1 . . 1 1 1 3 . 1 1 Gunslinging . | . . . . . . . . . . . . . . Exploded 3 | . . . . . . . . . . 3 . . . Melee 1 | . . . . . . . . 1 . . . . . Uniques/NPCs Destroyed . | . . . . . . . . . . . . . . Combat | -11 -10 -10 -9 -9 -9 -8 -8 -8 -8 -8 -7 -7 -6 -------- Run | Yrd Mat Min Mat Min Exi Min Mat Gar Mat Gar Fac DSF Fac Hostile Shots Fired 349 | . 21 8 24 5 . . . 84 63 113 . 20 11 Missed 94 | . 8 2 6 2 . . . 14 18 31 . 8 5 Damage Taken 3576 | . 117 139 228 31 . . . 1064 585 1106 . 199 107 Core 557 | . 15 41 92 10 . . . 172 50 139 . 38 . Absorbed by Shields 169 | . . . . . . . . . . 169 . . . Redirected to Shielding 89 | . . 5 11 . . . . 55 18 . . . . Ignored by Resistances 130 | . . . 16 . . . . 36 . . . 78 . Regen/Repaired (Parts) 630 | . . . . . . . . . 201 . . . 429 Core Remaining (%) 75 | 100 . 77 . . . 74 . . . 34 . 94 . Volleys Fired 254 | 9 21 10 30 4 . . 7 45 49 53 . 9 17 Largest 3 | 2 2 2 2 2 . . 3 3 3 3 . 3 2 Hottest 181 | 80 80 80 100 75 . . 150 150 181 147 . 125 106 Shots Fired 465 | 14 42 16 50 8 . . 20 96 96 84 . 18 21 Gun 230 | 14 42 12 34 8 . . 14 59 11 28 . 8 . Cannon 181 | . . 4 16 . . . 6 26 75 39 . 6 9 Launcher 4 | . . . . . . . . 2 . 2 . . . Special 50 | . . . . . . . . 9 10 15 . 4 12 Kinetic 218 | . . . 22 4 . . 7 40 75 51 . 10 9 Thermal 72 | . . 4 14 . . . 6 25 11 12 . . . Explosive 4 | . . . . . . . . 2 . 2 . . . Electromagnetic 121 | 14 42 12 14 4 . . 7 20 . 4 . 4 . Robot Hit Streak 15 | 5 10 4 8 4 . . 6 9 15 14 . 9 5 Robot Miss Streak 9 | 1 5 2 4 6 . . 6 4 4 3 . 8 9 Penetration Max 1 | . . . . . . . . . . 1 . . . Secondary Targets 1 | . . . 1 . . . . . . . . . . Max Gunslinging Chain 1 | . . . 1 . . . . . . . . . . Shots Hit Robots 307 | 8 24 11 35 6 . . 11 71 57 53 . 13 18 Core Hits 144 | 4 9 6 19 3 . . 6 25 23 27 . 8 14 Critical Kills 9 | . . . . . . . . . 4 5 . . . Critical Parts Destroyed 17 | . . . . . . . . 1 6 10 . . . Critical Strikes 28 | . . . . . . . . 1 12 15 . . . Destroy 26 | . . . . . . . . 1 10 15 . . . Blast 2 | . . . . . . . . . 2 . . . . Melee Attacks 43 | . . . 1 . . . . 30 6 4 . . 2 Impact 43 | . . . 1 . . . . 30 6 4 . . 2 Slashing . | . . . . . . . . . . . . . . Piercing . | . . . . . . . . . . . . . . Sneak Attacks 1 | . . . . . . . . . 1 . . . . Combat Hostiles . | . . . . . . . . . . . . . . Follow-up Attacks . | . . . . . . . . . . . . . . Damage Inflicted 6133 | 109 403 187 720 105 . . 287 1403 1243 1227 . 271 178 Guns 2459 | 109 308 112 454 105 . . 212 583 150 281 . 145 . Cannons 2678 | . . 75 266 . . . 75 448 1018 492 . 126 178 Explosions 672 | . 95 . . . . . . 123 . 454 . . . Melee 324 | . . . . . . . . 249 75 . . . . Ramming . | . . . . . . . . . . . . . . Kinetic 2747 | . . . 200 40 . . 65 434 1018 636 . 176 178 Thermal 1196 | . 95 75 250 . . . 75 430 150 121 . . . Explosive 268 | . . . . . . . . 53 . 215 . . . Electromagnetic 1598 | 109 308 112 270 65 . . 147 237 . 255 . 95 . Impact 324 | . . . . . . . . 249 75 . . . . Slashing . | . . . . . . . . . . . . . . Piercing . | . . . . . . . . . . . . . . Highest Corruption 21 | . . . . . . . . 11 11 21 . . . Average Corruption 12 | . . . . . . . . 9 11 16 . . . Corruption Purged . | . . . . . . . . . . . . . . Corruption Blocked . | . . . . . . . . . . . . . . Effects 191 | . . . . . . . . 42 80 69 . . . Message Errors 41 | . . . . . . . . 10 19 12 . . . Matter Fused 45 | . . . . . . . . 12 14 19 . . . Heat Flow Errors 23 | . . . . . . . . 1 14 8 . . . Energy Discharges 22 | . . . . . . . . 8 8 6 . . . Parts Rejected 1 | . . . . . . . . 1 . . . . . Parts Fused 3 | . . . . . . . . . . 3 . . . Data Loss (minor) 22 | . . . . . . . . 4 11 7 . . . Data Loss (major) 8 | . . . . . . . . 2 3 3 . . . Misfires 15 | . . . . . . . . 4 6 5 . . . Alerts 6 | . . . . . . . . . 3 3 . . . Misdirections 3 | . . . . . . . . . 1 2 . . . Weapon Failures 2 | . . . . . . . . . 1 1 . . . Overload Shots . | . . . . . . . . . . . . . . Overflow Damage 113 | . . . 10 . . . . . 60 43 . . . Projectiles 35 | . . . 10 . . . . . 25 . . . . Explosions 43 | . . . . . . . . . . 43 . . . Melee 35 | . . . . . . . . . 35 . . . . Knockbacks 26 | . . . . . . . . 3 5 8 . 1 9 Impact 3 | . . . . . . . . 3 . . . . . Kinetic 18 | . . . . . . . . . 5 5 . 1 7 Secondary 5 | . . . . . . . . . . 3 . . 2 Self-Inflicted Damage 202 | . 13 . . . . . . . . 189 . . . Shots 6 | . 1 . . . . . . . . 5 . . . Rammed 1 | 1 . . . . . . . . . . . . . Targets Rammed 1 | 1 . . . . . . . . . . . . . Kicked . | . . . . . . . . . . . . . . Crushed . | . . . . . . . . . . . . . . Highest Temperature 567 | 54 126 107 258 54 . . 230 567 461 394 . . 135 Average Temperature 107 | 23 42 49 103 27 . . 78 166 120 112 . . 63 Received Heat Transfer 883 | . 9 54 120 18 . . . 261 225 106 . 18 72 Effects 24 | . . . 2 . . . 2 13 4 3 . . . Shutdowns 3 | . . . . . . . . 2 1 . . . . Energy Bleed 1 | . . . . . . . . . . 1 . . . Interference 8 | . . . 2 . . . 2 . 3 1 . . . Matter Decay 2 | . . . . . . . . 2 . . . . . Short Circuit 2 | . . . . . . . . 2 . . . . . Damage (minor) 3 | . . . . . . . . 2 . 1 . . . Damage (major) 5 | . . . . . . . . 5 . . . . . Siege Activations . | . . . . . . . . . . . . . . Robots Corrupted 1 | . 1 . . . . . . . . . . . . Combat Hostiles . | . . . . . . . . . . . . . . Parts Fried 10 | . 1 . 4 1 . . 3 . . 1 . . . Impact Corruptions 1 | . . . . . . . . . 1 . . . . Robots Melted . | . . . . . . . . . . . . . . Combat Hostiles . | . . . . . . . . . . . . . . Parts Melted 3 | . . . 1 . . . . . 2 . . . . Heat Transferred 1808 | . 150 111 370 . . . 111 512 333 221 . . . Parts Sabotaged . | . . . . . . . . . . . . . . Parts Stolen . | . . . . . . . . . . . . . . Parts Stripped . | . . . . . . . . . . . . . . Power Chain Reactions 3 | . 2 . . . . . . . . 1 . . . Latent Energy Used 484 | . . . . . . . . 107 . 377 . . . LE Corruption 10 | . . . . . . . . 2 . 8 . . . Alert | -11 -10 -10 -9 -9 -9 -8 -8 -8 -8 -8 -7 -7 -6 ------- Run | Yrd Mat Min Mat Min Exi Min Mat Gar Mat Gar Fac DSF Fac Peak Influence 994 | 15 151 61 254 124 . . 109 853 505 994 511 385 225 Initial 511 | . 9 21 20 74 . . . 70 415 126 511 357 201 Average 284 | 5 43 48 170 101 . . 63 451 267 561 511 359 127 Maximum Alert Level 3 | . . . 1 . . . . 3 2 3 2 1 1 Low Security (%) 44 | 100 100 100 45 100 . 100 100 9 35 18 . . 58 Level 1 28 | . . . 54 . . . . 40 44 7 . 100 41 Level 2 20 | . . . . . . . . 37 19 51 100 . . Level 3 6 | . . . . . . . . 11 . 22 . . . Level 4 . | . . . . . . . . . . . . . . Level 5 . | . . . . . . . . . . . . . . High Security . | . . . . . . . . . . . . . . Max Security . | . . . . . . . . . . . . . . Squads Dispatched 8 | . . . 1 . . . 1 . 2 . 1 1 2 Investigation 5 | . . . 1 . . . 1 . 1 . 1 . 1 Extermination 1 | . . . . . . . . . . . . . 1 Reinforcement 2 | . . . . . . . . . 1 . . 1 . Assault . | . . . . . . . . . . . . . . Garrison . | . . . . . . . . . . . . . . Intercept . | . . . . . . . . . . . . . . Searches Triggered . | . . . . . . . . . . . . . . Construction Impeded . | . . . . . . . . . . . . . . Haulers Reinforced . | . . . . . . . . . . . . . . Active Scanning Responses . | . . . . . . . . . . . . . . Cargo Convoy Interrupts . | . . . . . . . . . . . . . . Stealth | -11 -10 -10 -9 -9 -9 -8 -8 -8 -8 -8 -7 -7 -6 --------- Run | Yrd Mat Min Mat Min Exi Min Mat Gar Mat Gar Fac DSF Fac Distress Signals 3 | . . . 1 . . . 1 . 1 . . . . Communications Jammed . | . . . . . . . . . . . . . . Distress Signals . | . . . . . . . . . . . . . . Times Spotted 132 | . 10 2 16 3 . . 4 22 30 27 . 7 11 Peak Tracking Total 7 | . 3 2 5 3 . . 2 7 3 6 . 3 4 Tactical Retreats 9 | . 1 . . 1 . . . . 3 2 . . 2 Traps | -11 -10 -10 -9 -9 -9 -8 -8 -8 -8 -8 -7 -7 -6 ------- Run | Yrd Mat Min Mat Min Exi Min Mat Gar Mat Gar Fac DSF Fac Traps Triggered 2 | . . 1 . . . . . . 1 . . . . Indirectly . | . . . . . . . . . . . . . . Trap Hack Attempts 34 | . . 24 . . . . . 4 6 . . . . Triggered 2 | . . . . . . . . 1 1 . . . . Disarmed . | . . . . . . . . . . . . . . Reprogrammed 3 | . . 2 . . . . . 1 . . . . . Reused 1 | . . . 1 . . . . . . . . . . Traps Extracted 2 | . . 2 . . . . . . . . . . . Installed 1 | . . . 1 . . . . . . . . . . Triggered 2 | . . . 1 . . . 1 . . . . . . Most Traps Carried 2 | . . 2 2 . . . . . . . . . . Machines | -11 -10 -10 -9 -9 -9 -8 -8 -8 -8 -8 -7 -7 -6 ---------- Run | Yrd Mat Min Mat Min Exi Min Mat Gar Mat Gar Fac DSF Fac Machines Disabled 20 | . 1 . 1 . . . 1 5 3 9 . . . Max in Single Turn 3 | . 1 . 1 . . . 1 1 1 3 . . . Garrison Relay 9 | . . . . . . . . 5 . 4 . . . Machines Repaired . | . . . . . . . . . . . . . . Machines Dismantled . | . . . . . . . . . . . . . . Machines Sabotaged . | . . . . . . . . . . . . . . Overloaded Fab Kills . | . . . . . . . . . . . . . . Hacking | -11 -10 -10 -9 -9 -9 -8 -8 -8 -8 -8 -7 -7 -6 --------- Run | Yrd Mat Min Mat Min Exi Min Mat Gar Mat Gar Fac DSF Fac Machines Accessed 37 | . 2 1 2 1 1 . 4 5 10 4 2 . 5 Terminals 27 | . 2 . 2 . . . 2 5 6 4 2 . 4 Fabricators . | . . . . . . . . . . . . . . Repair Stations 2 | . . . . . . . . . 1 . . . 1 Recycling Units 2 | . . . . . . . 1 . 1 . . . . Scanalyzers 1 | . . . . . . . . . 1 . . . . Garrison Access 2 | . . . . . . . 1 . 1 . . . . Total Hacks 113 | . 5 1 9 1 1 . 8 14 45 12 6 . 11 Successful 62 | . 3 1 5 1 1 . 8 4 28 2 2 . 7 Failed 51 | . 2 . 4 . . . . 10 17 10 4 . 4 Catastrophic 15 | . . . 2 . . . . 2 3 4 2 . 2 Database Lockouts . | . . . . . . . . . . . . . . Manual 37 | . 4 . 6 . 1 . 5 . 13 . 3 . 5 Terminals 78 | . 5 . 9 . . . 5 14 18 12 6 . 9 Fabricators . | . . . . . . . . . . . . . . Repair Stations 12 | . . . . . . . . . 10 . . . 2 Recycling Units 3 | . . . . . . . 2 . 1 . . . . Scanalyzers 15 | . . . . . . . . . 15 . . . . Garrison Access 2 | . . . . . . . 1 . 1 . . . . Terminal Hacks 26 | . 1 1 3 1 1 . 3 4 5 2 2 . 3 Record 1 | . . . . . 1 . . . . . . . . Prototype ID Bank 1 | . . . 1 . . . . . . . . . . Open Door 2 | . . 1 . 1 . . . . . . . . . Open DSF 1 | . . . . . . . . . . . 1 . . Branch Access Points 2 | . . . . . . . 2 . . . . . . Emergency Access Points 2 | . . . . . . . . 1 . 1 . . . Terminal Index 1 | . . . . . . . . . . . 1 . . Garrison Index 3 | . . . . . . . 1 . 1 . . . 1 Unreport Threat 1 | . . . . . . . . . 1 . . . . Locate Traps 5 | . 1 . 1 . . . . . 2 . . . 1 Zone Layout 3 | . . . 1 . . . . . 1 . . . 1 Garrison Registry 1 | . . . . . . . . 1 . . . . . Patrol Navigation 2 | . . . . . . . . 1 . 1 . . . Security Stations 1 | . . . . . . . . 1 . . . . . Fabricator Hacks . | . . . . . . . . . . . . . . Repair Station Hacks 8 | . . . . . . . . . 6 . . . 2 Scan Component 4 | . . . . . . . . . 3 . . . 1 Repair 4 | . . . . . . . . . 3 . . . 1 Recycling Unit Hacks 3 | . . . . . . . 2 . 1 . . . . Report Inventory 2 | . . . . . . . 1 . 1 . . . . Retrieve Components 1 | . . . . . . . 1 . . . . . . Scanalyzer 14 | . . . . . . . . . 14 . . . . Insert Component 6 | . . . . . . . . . 6 . . . . Analyze 8 | . . . . . . . . . 8 . . . . Garrison Access Hacks 2 | . . . . . . . 1 . 1 . . . . Unlock Access 2 | . . . . . . . 1 . 1 . . . . Unauthorized Hacks 9 | . 2 . 2 . . . 2 . 1 . . . 2 Terminals 9 | . 2 . 2 . . . 2 . 1 . . . 2 Botnet 7 | . 1 . 2 . . . 2 . 1 . . . 1 Disrupt 1 | . . . . . . . . . . . . . 1 Operators 1 | . 1 . . . . . . . . . . . . Fabricators . | . . . . . . . . . . . . . . Repair Stations . | . . . . . . . . . . . . . . Recycling Units . | . . . . . . . . . . . . . . Scanalyzers . | . . . . . . . . . . . . . . Garrison Access . | . . . . . . . . . . . . . . Data Cores Recovered 1 | . . . . . . . . . 1 . . . . Used . | . . . . . . . . . . . . . . Hacking Detections 24 | . 2 . 2 . . . 2 3 5 4 1 . 5 Full Trace Events 8 | . . . 1 . . . . 3 . 2 1 . 1 Feedback Events 1 | . . . . . . . . 1 . . . . . Hackware Fried 1 | . . . . . . . . 1 . . . . . Feedback Blocked . | . . . . . . . . . . . . . . Robot Schematics Acquired . | . . . . . . . . . . . . . . Robots Built . | . . . . . . . . . . . . . . Authchips . | . . . . . . . . . . . . . . Time . | . . . . . . . . . . . . . . Total Robot Build Rating . | . . . . . . . . . . . . . . Part Schematics Acquired 6 | . . . . . . . . . 6 . . . . Parts Built . | . . . . . . . . . . . . . . Authchips . | . . . . . . . . . . . . . . Time . | . . . . . . . . . . . . . . Total Part Build Rating . | . . . . . . . . . . . . . . Parts Repaired 4 | . . . . . . . . . 3 . . . 1 Time 134 | . . . . . . . . . 121 . . . 13 Parts Recycled . | . . . . . . . . . . . . . . Recycled Matter . | . . . . . . . . . . . . . . Retrieved Matter . | . . . . . . . . . . . . . . Retrieved Components 2 | . . . . . . . 2 . . . . . . Parts Scanalyzed 6 | . . . . . . . . . 6 . . . . Part Schematics Acquired 6 | . . . . . . . . . 6 . . . . Parts Damaged . | . . . . . . . . . . . . . . Bothacking | -11 -10 -10 -9 -9 -9 -8 -8 -8 -8 -8 -7 -7 -6 ------------ Run | Yrd Mat Min Mat Min Exi Min Mat Gar Mat Gar Fac DSF Fac Used RIF Installer 4 | . . . . . . . . 2 . 2 . . . Coupler Efficiency 1 | . . . . . . . . . . 1 . . . Patrol Navigation 1 | . . . . . . . . . . 1 . . . Structural Interface 1 | . . . . . . . . 1 . . . . . Robots Hacked 31 | . . . . . . . . 8 6 7 . 3 7 Non-combat 3 | . . . . . . . . . 2 . . . 1 Combat 28 | . . . . . . . . 8 4 7 . 3 6 Robot Hacks Applied 32 | . . . . . . . . 8 6 8 . 3 7 map_route 1 | . . . . . . . . . 1 . . . . focus_fire 1 | . . . . . . . . 1 . . . . . spike_heat 1 | . . . . . . . . . . . . . 1 amplify_resonance 3 | . . . . . . . . . 1 2 . . . reboot_system 2 | . . . . . . . . 1 . . . . 1 overwrite_iff 5 | . . . . . . . . 2 1 . . . 2 formatsys_high 19 | . . . . . . . . 4 3 6 . 3 3 Relay Couplers Released 37 | . . . . . . . . 21 . 16 . . . Machine Destruction 37 | . . . . . . . . 21 . 16 . . . Attached 16 | . . . . . . . . 5 3 3 3 . 2 Fabnet Peak Effective % . | . . . . . . . . . . . . . . Robots Rewired . | . . . . . . . . . . . . . . Allies Hacked . | . . . . . . . . . . . . . . Hacks Repelled . | . . . . . . . . . . . . . . Allies | -11 -10 -10 -9 -9 -9 -8 -8 -8 -8 -8 -7 -7 -6 -------- Run | Yrd Mat Min Mat Min Exi Min Mat Gar Mat Gar Fac DSF Fac Total Allies 28 | . . . . . . . . 8 4 8 . 3 5 Largest Group 3 | . . . . . . . . 3 3 2 2 3 3 Highest-Rated Group 81 | . . . . . . . . 74 55 56 10 48 81 Highest-Rated Ally 39 | . . . . . . . . 39 29 31 5 16 29 Total Orders 23 | . . . . 4 . . 2 2 15 . . . . STAY 11 | . . . . 1 . . . 1 9 . . . . FOLLOW 8 | . . . . 1 . . . 1 6 . . . . EXPLORE 1 | . . . . . . . 1 . . . . . . RETURN 3 | . . . . 2 . . 1 . . . . . . Ally Attacks 174 | . . . . . . . . 32 47 26 . 36 33 Total Damage 2238 | . . . . . . . . 599 489 364 . 310 476 Kills 18 | . . . . . . . . 6 4 4 . 2 2 Allies Corrupted . | . . . . . . . . . . . . . . Allies Melted . | . . . . . . . . . . . . . . Intel | -11 -10 -10 -9 -9 -9 -8 -8 -8 -8 -8 -7 -7 -6 ------- Run | Yrd Mat Min Mat Min Exi Min Mat Gar Mat Gar Fac DSF Fac Robot Analysis Total . | . . . . . . . . . . . . . . Derelict Logs Recovered 2 | . . 1 . 1 . . . . . . . . . Drone Launches 3 | . . . . 2 . . 1 . . . . . . Drone Recoveries 3 | . . . . 2 . . 1 . . . . . . Exploration | -11 -10 -10 -9 -9 -9 -8 -8 -8 -8 -8 -7 -7 -6 ------------- Run | Yrd Mat Min Mat Min Exi Min Mat Gar Mat Gar Fac DSF Fac Turns Passed 8764 | 140 552 317 483 129 309 382 375 1272 2059 1557 79 284 826 Spaces Moved 4950 | 63 333 201 300 77 296 384 267 737 893 848 45 108 398 Core 8 | 8 . . . . . . . . . . . . . Treads 2160 | 55 182 . . . . . . 73 893 848 45 64 . Legs . | . . . . . . . . . . . . . . Wheels 2340 | . 151 201 300 77 296 384 267 664 . . . . . Hover 442 | . . . . . . . . . . . . 44 398 Flight . | . . . . . . . . . . . . . . Fastest Speed 50 | 50 110 110 95 110 95 98 98 95 160 160 160 160 168 Average Speed 137 | 152 137 115 98 110 102 99 112 120 160 160 160 212 174 Slowest Speed 720 | 160 160 125 110 110 110 110 113 160 160 160 160 720 228 Overloaded Moves . | . . . . . . . . . . . . . . Propulsion Burnouts . | . . . . . . . . . . . . . . Robots Hopped . | . . . . . . . . . . . . . . Cave-ins Triggered . | . . . . . . . . . . . . . . Exploration Rate (%) 46 | 6 48 49 25 13 69 86 23 87 60 81 1 83 13 Regions Visited 13 Branch Regions 4 Pre-discovered Areas 2 | . . 1 . . 1 . . . . . . . . Known Exits Taken 4 | . . . . . . 1 1 . 1 . 1 . . Unknown Exits Taken 6 | 1 1 1 1 1 1 . . . . . . . . Scrap Searched 4 | . . 2 . 1 . 1 . . . . . . . Spaces Dug 8 | . . . 1 . . . . . 5 . . . 2 Terrain Destroyed 83 | . 6 1 3 . . . 2 9 18 42 . . 2 Melee 8 | . . . 1 . . . . . 5 . . . 2 Projectile 18 | . . 1 2 . . . 2 . 13 . . . . AOE 57 | . 6 . . . . . . 9 . 42 . . . Terrain Rammed . | . . . . . . . . . . . . . . Walls Destroyed . | . . . . . . . . . . . . . . Machines Disabled . | . . . . . . . . . . . . . . Actions | -11 -10 -10 -9 -9 -9 -8 -8 -8 -8 -8 -7 -7 -6 --------- Run | Yrd Mat Min Mat Min Exi Min Mat Gar Mat Gar Fac DSF Fac Total 6386 | 90 385 269 434 113 301 385 323 977 1425 972 52 151 509 Wait 796 | 4 15 15 71 28 . . 40 88 438 22 . 9 66 Move 4939 | 62 332 200 299 76 295 383 267 736 893 847 44 107 398 Hop . | . . . . . . . . . . . . . . Pick Up 82 | 6 10 5 8 1 . . 3 13 5 12 . 3 16 Fast Attach 45 | 7 . 5 3 . 1 1 . 9 3 2 2 10 2 Attach 40 | . . 1 3 . 1 . 2 11 6 8 4 . 4 Detach 17 | . . 2 2 . 2 . . 3 1 4 2 1 . Swap 59 | . 4 3 8 2 1 . 3 17 11 7 . 1 2 Drop 62 | 1 3 4 8 2 1 1 1 11 7 11 . 10 2 Fire 254 | 9 21 10 30 4 . . 7 45 49 53 . 9 17 Melee 43 | . . . 1 . . . . 30 6 4 . . 2 Ram . | . . . . . . . . . . . . . . Kick . | . . . . . . . . . . . . . . Crush 1 | 1 . . . . . . . . . . . . . Escape Stasis 9 | . . . . . . . . 9 . . . . . Rewire 4 | . . . . . . . . 1 . 2 . 1 . Trap 35 | . . 24 1 . . . . 4 6 . . . . Miscellaneous . | . . . . . . . . . . . . . . Route ------- -11/Scrapyard -10/Materials (discovered 2 exits: *Mat / *Min) -10/Mines -9/Materials (discovered 2 exits: Mat / *Min) -9/Mines -9/Exiles -8/Mines -8/Materials -8/Garrison (discovered 3 exits: *Mat x3) -8/Materials (discovered 4 exits: *Fac x3 / Gar) -8/Garrison (discovered 2 exits: *Fac x2) -7/Factory -7/DSF -6/Factory History --------- Turn | Location | Event 11 | -11/Scrapyard | Discovered new exit (range 14) 141 | -11/Scrapyard | Entered Materials 181 | -10/Materials | Discovered new exit (range 16) 304 | -10/Materials | Build established: Mutant 365 | -10/Materials | Discovered new exit (range 5) 693 | -10/Materials | Entered Mines 701 | -10/Mines | Learned location of Storage (-9) 810 | -10/Mines | A weapon hastily lodged in a ceiling crevice suddenly fell to the ground 840 | -10/Mines | Met a Derelict who couldn't figure out how to use a Trap Extractor 972 | -10/Mines | Learned location of 1 exit from Materials 1003 | -10/Mines | Discovered new exit (range 6) 1010 | -10/Mines | Entered Materials 1010 | -9/Materials | Evolved 2 slots: Propulsion x1, Utility x1 1011 | -9/Materials | Identified exit to Materials 1462 | -9/Materials | Discovered new exit (range 16) 1493 | -9/Materials | Entered Mines 1503 | -9/Mines | Found the Drone Emporium 1508 | -9/Mines | Found Prototype Device 1509 | -9/Mines | Identified Sensor Drone Bay 1616 | -9/Mines | Deemed a non-threat by the Exiles lab entrance 1616 | -9/Mines | Discovered new exit (range 5) 1622 | -9/Mines | Entered Exiles 1646 | -9/Exiles | Met 8R-AWN 1662 | -9/Exiles | Met EX-HEX 1700 | -9/Exiles | Met EX-DEC 1704 | -9/Exiles | Learned location of Zion (-7) 1719 | -9/Exiles | Met EX-BIN 1733 | -9/Exiles | Aligned with FarCom system 1734 | -9/Exiles | Given EX-Vault access code 1756 | -9/Exiles | Opened EX-Vault 1762 | -9/Exiles | Found Prototype Energy Cannon 1762 | -9/Exiles | Identified Latent Energy Streamer 1789 | -9/Exiles | Warned to stay clear of 0b10 Research branches 1922 | -9/Exiles | Discovered new exit (range 10) 1931 | -9/Exiles | Left Exiles lab with Latent Energy Streamer 1931 | -9/Exiles | Entered Mines 2299 | -8/Mines | Discovered exit to Materials (range 5) 2313 | -8/Mines | Entered Materials 2313 | -8/Materials | Evolved 2 slots: Utility x1, Weapon x1 2617 | -8/Materials | Build established: Tank 2688 | -8/Materials | Identified exit to Garrison 2688 | -8/Materials | Entered Garrison 2722 | -8/Garrison | Triggered checkpoint 2822 | -8/Garrison | Rescued a captive Derelict 2822 | -8/Garrison | Rescued a captive Derelict 2826 | -8/Garrison | Lost 6 parts (1p1n2u2w) 2850 | -8/Garrison | Discovered new exit (range 37) 2850 | -8/Garrison | Discovered new exit (range 79) 2850 | -8/Garrison | Discovered new exit (range 67) 2903 | -8/Garrison | Installed Relay Interface Framework 2961 | -8/Garrison | Garrison Relay disabled 3042 | -8/Garrison | Triggered checkpoint 3042 | -8/Garrison | Triggered checkpoint 3072 | -8/Garrison | Triggered checkpoint 3096 | -8/Garrison | Lost 3 allies 3323 | -8/Garrison | System corruption reached 10% 3390 | -8/Garrison | Triggered checkpoint 3401 | -8/Garrison | Build established: Mutant 3416 | -8/Garrison | Garrison Relay disabled 3437 | -8/Garrison | Garrison Relay disabled 3558 | -8/Garrison | Triggered checkpoint 3580 | -8/Garrison | Expanded RIF knowledge: Structural Interface 3599 | -8/Garrison | Garrison Relay disabled 3710 | -8/Garrison | Triggered checkpoint 3759 | -8/Garrison | Learned Materials security intel 3808 | -8/Garrison | Garrison Relay disabled 3951 | -8/Garrison | Hacking Suite fried by hacking feedback 3960 | -8/Garrison | Entered Materials 3960 | -8/Materials | Accompanied by 2 allies 4300 | -8/Materials | Build established: Bothacker-Skirmisher 4555 | -8/Materials | Discovered new exit (range 16) 5035 | -8/Materials | Build established: Bothacker-Mutant 5205 | -8/Materials | Repaired Broken Arm. Wheel 5268 | -8/Materials | Repaired Hvy. Ion Engine 5295 | -8/Materials | Repaired Lgt. Treads 5392 | -8/Materials | Build established: Bothacker-Skirmisher 5496 | -8/Materials | Discovered new exit (range 13) 5844 | -8/Materials | Discovered new exit (range 16) 6019 | -8/Materials | Identified exit to Garrison 6019 | -8/Materials | Entered Garrison 6143 | -8/Garrison | Triggered checkpoint 6307 | -8/Garrison | Triggered checkpoint 6366 | -8/Garrison | Core integrity fell below 50% 6380 | -8/Garrison | Rescued a captive Derelict 6384 | -8/Garrison | Rescued a captive Derelict 6422 | -8/Garrison | Garrison Relay disabled 6631 | -8/Garrison | Triggered checkpoint 6640 | -8/Garrison | Garrison Relay disabled 6877 | -8/Garrison | Triggered checkpoint 6992 | -8/Garrison | P-60 Hacker assimilated allied Trooper 3d 7058 | -8/Garrison | Expanded RIF knowledge: Coupler Efficiency 7211 | -8/Garrison | Expanded RIF knowledge: Patrol Navigation 7230 | -8/Garrison | Triggered checkpoint 7248 | -8/Garrison | Garrison Relay disabled 7345 | -8/Garrison | Discovered new exit (range 14) 7371 | -8/Garrison | Garrison Relay disabled 7550 | -8/Garrison | Discovered new exit (range 12) 7552 | -8/Garrison | Build established: Botlord-Mutant 7576 | -8/Garrison | Entered Factory 7576 | -7/Factory | Accompanied by 2 allies 7576 | -7/Factory | Evolved 2 slots: Utility x2 7653 | -7/Factory | Identified exit to DSF 7655 | -7/Factory | Entered DSF 7655 | -7/DSF | Accompanied by 2 allies 7699 | -7/DSF | Additional patrols routed to DSF 7907 | -7/DSF | Discovered new exit (range 15) 7939 | -7/DSF | Entered Factory 7939 | -6/Factory | Accompanied by 3 allies 7939 | -6/Factory | Evolved 2 slots: Power x1, Propulsion x1 7972 | -6/Factory | Repaired Hcp. Storage Unit 8173 | -6/Factory | Lost 4 allies 8283 | -6/Factory | Build established: Bothacker-Skirmisher 8765 | -6/Factory | Self-destructed Last Messages --------------- 08557_ G-50 Soldier heat damages Broken Carbon-fiber Leg, Carbon-fiber Leg. 08557_ G-50 Soldier overheating. 08558_ G-50 Soldier heat damages Broken Carbon-fiber Leg, Carbon-fiber Leg, Adv. Heat Sink. 08558_ G-50 Soldier overheating. 08558_ G-50 Soldier destroyed. 08571_ Acquired 61 matter. 08583_ K-01 Serf cleans the Matter Pump. 08620_ K-01 Serf cleans the Terminal. 08632_ K-01 Serf cleans the Matter Pump. 08689_ ALERT: Rogue bot located, Programmers report to Factory Zone 7X. 08689_ K-01 Serf cleans the Matter Pump. 08699_ Detecting nearby Garrison Access. 08745_ Administrator 5a reveals location of Chute Trap. 08751_ K-01 Serf cleans the Pressure Siphon. Map ----- +----------------------------------------------------+ | ?????????????????????????????????????????????????? | | ?????????????????????????????????????????????????? | | ?????????????????????????????????????????????????? | | ?????????????????????????????????????????????????? | | ?????????????????????????????????????????????????? | | ?????????????????????????????????????????????????? | | ?????????????????????????????????????????????????? | | ?????????????????????????????????????????????????? | | ?????????????????????????????????????????????????? | | ?????????????????????? ?????????????????????????? | | ?????????????????????? ????????????????????????? | | ?????????????????????? ????????????????????????? | | ?????????????????????? ????????????????????????? | | ?????????????????"" """ ????????????????????????? | | ????????????????""" F" ????????????????????????? | | ????????????????""" """ ????????????????????????? | | ???????????????? "" ?????????????#??????????? | | ????????????????""" #??????????? #??????????? | | ??????????????? """ ############+############ | | ?????????????"" """ k ^ k | | ??????????? """ """ ^ | | ?????????? k^ | | ?????????? g """ """ | | ????????? ^ A """ """ | | ????????? g ^ """ """ | | ????????? b k @ ^ o [= R | | ????????????#################### [= """ """ | | ?????????g????????#""########### [ """ """ | | ????????g??????????# # """ """ | | ???????????????????# # | | ???????????????????# """"""" # """ """ | | ???????????????????# """"""" ! + """ """ | | ???????????????????# """"""" # ]!! """ """ ## | | ???????????????????# """"""" # ]!! #? | | ???????????????????# [ # ]!! """ """ #? | | ???????????????????############# """ """ #? | | ???????????????????????????# """ """ #? | | ???????????????????????????# #? | | ???????????????????????????# #? | | ???????????????????????????# ## | | ???????????????????????????# | | ???????????????????????? ######### #####+## | | ???????????????????????############### #??? ? | | ???????????????????????????# # #???"""? | | ????????????????????????????"""" # #??"""" | | ????????????????????????????"""" # #??"" | | ????????????????????????????"""" ! + #? | | ????????????????????????????"""" # ####? | | ????????????????????????????"""" # #???? = | | ????????????????????????????"""" # #??????[ | +----------------------------------------------------+ Best States ------------- Heat Dissipation 45 Energy Generation 25 Energy Capacity 470 Matter Stores 300 Matter Capacity 300 Sight Range 16 Terrain Scan Density 10 Armor Coverage 225 Resistance: KI 30 Resistance: TH 10 Propulsion Shielding 33 Evasion (%) 41 Recoil Reduction 3 Offensive Hacking 10 Defensive Hacking 14 Relay Coupler Types 4 Relay Coupler Value 123 Trap Extractor Capacity 8 Item Schematics ----------------- Remote Datajack | -8/Materials | Scanalyzed Imp. Light Armor Plating | -8/Materials | Scanalyzed Imp. Targeting Computer | -8/Materials | Scanalyzed Imp. Datajack | -8/Materials | Scanalyzed Imp. Heat Sink | -8/Materials | Scanalyzed Signal Interpreter | -8/Materials | Scanalyzed Robot Schematics ------------------ None Fabricated ------------ Nothing Alien Tech Used ----------------- None Achievements -------------- None Challenges ------------ None Game ------ Seed StorageThermoelectricBarrier Manual? 0 Play Time 01:37:13 Cumulative 128.9 hours Start 2024.06.02 @ 23:21:07 End 2024.06.05 @ 16:42:46 Sessions 1 Manual Loads 0 Difficulty Rogue Special Mode None Game No. 107 Rogue 68 Adventurer 32 Explorer 7 Win Type - Total 0 Types 0/0/0/0/0/0/0/0/0 Lore% 33 Gallery% 66 Achievement% 49 Wizard Run 0 Options --------- Layout 2 ASCII 0 Keyboard 0 Movement Numpad Keybinds 0 Fullscreen 2 Font 16/SmallcapsGlow Map View 50x44 Zoom Use 0% Tactical HUD 1 Map Filters NONE Filters NONE Steam SD RUN: 663ef8aa-bc01-4221-8de7-30c3c4767cb9